[Event "Late-Titled-Tuesday-Blitz-September-12-2023"]
[Site "Chess.com"]
[Date "2023.09.12"]
[Round "3"]
[White "Piotrek1979"]
[Black "temus_galaktionov"]
[Result "0-1"]
[WhiteElo "2469"]
[BlackElo "2828"]
[TimeControl "180+1"]
[EndTime "14:27:50 PDT"]
[Termination "temus_galaktionov won by resignation"]

1. Nf3 {[%clk 0:03:00.9]} 1... c6 {[%clk 0:03:00.9]} 2. g3 {[%clk 0:03:00.1]}
2... g6 {[%clk 0:03:01.8]} 3. Bg2 {[%clk 0:03:00.3]} 3... Bg7 {[%clk 0:03:02.7]}
4. O-O {[%clk 0:03:00.4]} 4... Nf6 {[%clk 0:03:03.6]} 5. d3 {[%clk 0:03:00.7]}
5... O-O {[%clk 0:03:04.5]} 6. e4 {[%clk 0:03:00.4]} 6... d6 {[%clk 0:03:04.9]}
7. a4 {[%clk 0:02:58.2]} 7... e5 {[%clk 0:03:05.1]} 8. Nc3 {[%clk 0:02:57.7]}
8... Re8 {[%clk 0:03:03.5]} 9. h3 {[%clk 0:02:57.3]} 9... d5 {[%clk 0:03:03]}
10. a5 {[%clk 0:02:55.7]} 10... d4 {[%clk 0:02:55.5]} 11. Nb1 {[%clk 0:02:55.3]}
11... c5 {[%clk 0:02:56]} 12. Nbd2 {[%clk 0:02:54.3]} 12... Nc6 {[%clk
0:02:55.5]} 13. Nc4 {[%clk 0:02:53.6]} 13... Qc7 {[%clk 0:02:55.5]} 14. Bd2
{[%clk 0:02:51.9]} 14... Be6 {[%clk 0:02:55.2]} 15. Ne1 {[%clk 0:02:51.8]} 15...
b5 {[%clk 0:02:43.4]} 16. axb6 {[%clk 0:02:50]} 16... axb6 {[%clk 0:02:43.7]}
17. f4 {[%clk 0:02:49.2]} 17... Rxa1 {[%clk 0:02:25]} 18. Qxa1 {[%clk
0:02:49.3]} 18... Bxc4 {[%clk 0:02:21.8]} 19. dxc4 {[%clk 0:02:48.8]} 19... exf4
{[%clk 0:02:21.2]} 20. Bxf4 {[%clk 0:02:48]} 20... Qd7 {[%clk 0:02:17]} 21. Qa4
{[%clk 0:02:39.6]} 21... Nxe4 {[%clk 0:02:13.8]} 22. Nd3 {[%clk 0:02:20.9]}
22... f5 {[%clk 0:02:12.1]} 23. Qb5 {[%clk 0:02:16.1]} 23... Ne5 {[%clk
0:02:05.2]} 24. Bxe5 {[%clk 0:02:06.4]} 24... Qxb5 {[%clk 0:02:04.9]} 25. cxb5
{[%clk 0:02:05.6]} 25... Bxe5 {[%clk 0:02:05.2]} 26. g4 {[%clk 0:02:05.8]} 26...
c4 {[%clk 0:01:57.6]} 27. gxf5 {[%clk 0:01:58.7]} 27... Ng3 {[%clk 0:01:15.4]}
28. Nxe5 {[%clk 0:01:42.9]} 28... Rxe5 {[%clk 0:00:59.6]} 29. Ra1 {[%clk
0:00:54.9]} 29... Nxf5 {[%clk 0:00:54.6]} 30. Bc6 {[%clk 0:00:51.9]} 30... Ne3
{[%clk 0:00:48.6]} 31. Rc1 {[%clk 0:00:38.3]} 31... Kg7 {[%clk 0:00:45]} 32. Kf2
{[%clk 0:00:38.1]} 32... Kf6 {[%clk 0:00:44.4]} 33. Kf3 {[%clk 0:00:36.1]} 33...
Kg5 {[%clk 0:00:44.3]} 34. b3 {[%clk 0:00:24.1]} 34... cxb3 {[%clk 0:00:39.2]}
35. cxb3 {[%clk 0:00:24.2]} 35... d3 {[%clk 0:00:39.6]} 36. Rg1+ {[%clk
0:00:23.8]} 36... Kh4 {[%clk 0:00:39.4]} 37. Be4 {[%clk 0:00:21.7]} 37... Nc2
{[%clk 0:00:29.5]} 38. Kf4 {[%clk 0:00:18.8]} 38... Rxb5 {[%clk 0:00:15.9]} 39.
Rg4+ {[%clk 0:00:18.3]} 39... Kxh3 {[%clk 0:00:14.7]} 40. Bg2+ {[%clk
0:00:17.3]} 40... Kh2 {[%clk 0:00:14.7]} 41. Be4 {[%clk 0:00:17.4]} 41... Rb4
{[%clk 0:00:14]} 42. Rh4+ {[%clk 0:00:16.3]} 42... Kg1 {[%clk 0:00:13.6]} 43.
Rh1+ {[%clk 0:00:16.3]} 43... Kf2 {[%clk 0:00:13.5]} 44. Rh2+ {[%clk 0:00:16.4]}
44... Ke1 {[%clk 0:00:13.9]} 45. Kf3 {[%clk 0:00:16]} 45... Rxb3 {[%clk
0:00:10.4]} 46. Rh1+ {[%clk 0:00:11.4]} 46... Kd2 {[%clk 0:00:10.3]} 47. Rxh7
{[%clk 0:00:11.2]} 47... g5 {[%clk 0:00:09.4]} 48. Rh2+ {[%clk 0:00:10.1]} 48...
Kc1 {[%clk 0:00:09.7]} 49. Rh1+ {[%clk 0:00:08.6]} 49... Kb2 {[%clk 0:00:09.8]}
50. Rh2 {[%clk 0:00:07.6]} 50... d2+ {[%clk 0:00:09.8]} 51. Ke2 {[%clk
0:00:07.9]} 51... Re3+ {[%clk 0:00:08.1]} 52. Kxd2 {[%clk 0:00:08.8]} 52... Rxe4
{[%clk 0:00:09]} 53. Rg2 {[%clk 0:00:09.2]} 53... Rd4+ {[%clk 0:00:09.3]} 54.
Ke2 {[%clk 0:00:09.2]} 54... Rd5 {[%clk 0:00:10.2]} 55. Rg4 {[%clk 0:00:08.2]}
55... b5 {[%clk 0:00:10.4]} 56. Re4 {[%clk 0:00:07.3]} 56... b4 {[%clk
0:00:10.8]} 57. Re8 {[%clk 0:00:06.4]} 57... b3 {[%clk 0:00:11.3]} 58. Rb8
{[%clk 0:00:06.7]} 58... Ka2 {[%clk 0:00:11.6]} 0-1

[Event "Late-Titled-Tuesday-Blitz-September-12-2023"]
[Site "Chess.com"]
[Date "2023.09.12"]
[Round "3"]
[White "slorovel"]
[Black "Aleksandar-Topalov"]
[Result "0-1"]
[WhiteElo "2529"]
[BlackElo "2366"]
[TimeControl "180+1"]
[EndTime "14:27:50 PDT"]
[Termination "Aleksandar-Topalov won by resignation"]

1. e4 {[%clk 0:03:00.9]} 1... e6 {[%clk 0:02:59.9]} 2. d4 {[%clk 0:02:59.2]}
2... d5 {[%clk 0:02:59.4]} 3. exd5 {[%clk 0:03:00.1]} 3... exd5 {[%clk
0:02:59.2]} 4. Bd3 {[%clk 0:03:00.8]} 4... Bd6 {[%clk 0:02:58]} 5. Ne2 {[%clk
0:03:01]} 5... Ne7 {[%clk 0:02:57.3]} 6. O-O {[%clk 0:03:01.6]} 6... Bf5 {[%clk
0:02:56.5]} 7. Bf4 {[%clk 0:03:00.3]} 7... Bxd3 {[%clk 0:02:54.6]} 8. Qxd3
{[%clk 0:02:59.9]} 8... c6 {[%clk 0:02:54.8]} 9. Nbc3 {[%clk 0:02:59.5]} 9...
O-O {[%clk 0:02:54.4]} 10. f3 {[%clk 0:02:58.6]} 10... Qc7 {[%clk 0:02:52.9]}
11. Bxd6 {[%clk 0:02:58.1]} 11... Qxd6 {[%clk 0:02:53.1]} 12. Ng3 {[%clk
0:02:58.1]} 12... Nd7 {[%clk 0:02:49.2]} 13. Rae1 {[%clk 0:02:56]} 13... Rfe8
{[%clk 0:02:48.5]} 14. a3 {[%clk 0:02:55.8]} 14... Ng6 {[%clk 0:02:46.6]} 15.
Nf5 {[%clk 0:02:55.9]} 15... Qf6 {[%clk 0:02:45.9]} 16. Ne2 {[%clk 0:02:51.5]}
16... Ndf8 {[%clk 0:02:41.4]} 17. Neg3 {[%clk 0:02:51.3]} 17... Nh4 {[%clk
0:02:29.1]} 18. Nxh4 {[%clk 0:02:45.4]} 18... Qxh4 {[%clk 0:02:28.9]} 19. c3
{[%clk 0:02:45.7]} 19... Ng6 {[%clk 0:02:21.1]} 20. a4 {[%clk 0:02:36.6]} 20...
Qf6 {[%clk 0:02:17.8]} 21. a5 {[%clk 0:02:33.9]} 21... a6 {[%clk 0:02:17.4]} 22.
Re3 {[%clk 0:02:21]} 22... Kf8 {[%clk 0:02:09.4]} 23. Rfe1 {[%clk 0:02:19.7]}
23... Re6 {[%clk 0:01:51.5]} 24. Rxe6 {[%clk 0:02:17.9]} 24... fxe6 {[%clk
0:01:51.3]} 25. Qc2 {[%clk 0:02:13.2]} 25... Re8 {[%clk 0:01:44.2]} 26. Qb3
{[%clk 0:02:11.8]} 26... Qf7 {[%clk 0:01:37.7]} 27. c4 {[%clk 0:01:53.2]} 27...
Nf4 {[%clk 0:01:16.2]} 28. Re5 {[%clk 0:01:40.9]} 28... Ng6 {[%clk 0:01:13.8]}
29. Re1 {[%clk 0:01:40]} 29... Kg8 {[%clk 0:01:14]} 30. Qe3 {[%clk 0:01:21.2]}
30... dxc4 {[%clk 0:01:06.8]} 31. Qc3 {[%clk 0:01:16.2]} 31... e5 {[%clk
0:00:58]} 32. dxe5 {[%clk 0:01:16.2]} 32... Qd5 {[%clk 0:00:58]} 33. h3 {[%clk
0:00:52.6]} 33... Rxe5 {[%clk 0:00:57.2]} 34. Ne4 {[%clk 0:00:47.5]} 34... Nf4
{[%clk 0:00:48.6]} 35. Kh2 {[%clk 0:00:45.3]} 35... Nd3 {[%clk 0:00:39.1]} 36.
Rd1 {[%clk 0:00:44]} 36... Re8 {[%clk 0:00:30]} 37. b3 {[%clk 0:00:43.8]} 37...
Qe5+ {[%clk 0:00:28.6]} 38. Qxe5 {[%clk 0:00:43.6]} 38... Nxe5 {[%clk
0:00:28.7]} 39. Nc5 {[%clk 0:00:14.8]} 39... cxb3 {[%clk 0:00:22.9]} 40. Rb1
{[%clk 0:00:14.3]} 40... Nc4 {[%clk 0:00:20.4]} 41. Nxb7 {[%clk 0:00:13.6]}
41... Rb8 {[%clk 0:00:16.8]} 42. Rxb3 {[%clk 0:00:11.8]} 42... Nd6 {[%clk
0:00:16.3]} 43. Nc5 {[%clk 0:00:09]} 43... Rxb3 {[%clk 0:00:16.4]} 44. Nxb3
{[%clk 0:00:09.9]} 44... Kf7 {[%clk 0:00:16.8]} 45. Nc5 {[%clk 0:00:08.5]} 45...
Nc4 {[%clk 0:00:15.8]} 46. Nxa6 {[%clk 0:00:08.7]} 46... Nxa5 {[%clk 0:00:16.3]}
47. Kg3 {[%clk 0:00:08.6]} 47... Nb3 {[%clk 0:00:15.8]} 48. Kf4 {[%clk
0:00:08.4]} 48... Ke6 {[%clk 0:00:16.3]} 49. Ke4 {[%clk 0:00:08.7]} 49... Kd6
{[%clk 0:00:16.2]} 50. f4 {[%clk 0:00:08.6]} 50... c5 {[%clk 0:00:14.8]} 51. g4
{[%clk 0:00:07.7]} 51... c4 {[%clk 0:00:15]} 52. f5 {[%clk 0:00:06.5]} 52...
Nc5+ {[%clk 0:00:15.1]} 53. Nxc5 {[%clk 0:00:05.6]} 53... Kxc5 {[%clk
0:00:15.5]} 54. Ke3 {[%clk 0:00:06]} 54... Kd5 {[%clk 0:00:15.1]} 55. h4 {[%clk
0:00:04]} 55... Ke5 {[%clk 0:00:15.1]} 56. h5 {[%clk 0:00:03.2]} 56... h6 {[%clk
0:00:14.8]} 57. Kd2 {[%clk 0:00:03.1]} 57... Kf4 {[%clk 0:00:14.6]} 58. Kc3
{[%clk 0:00:03]} 58... Kxg4 {[%clk 0:00:14.6]} 59. Kxc4 {[%clk 0:00:02.8]} 59...
Kxf5 {[%clk 0:00:15]} 0-1

[Event "Late-Titled-Tuesday-Blitz-September-12-2023"]
[Site "Chess.com"]
[Date "2023.09.12"]
[Round "3"]
[White "KamilGrycel"]
[Black "ferdipy"]
[Result "1-0"]
[WhiteElo "2529"]
[BlackElo "2268"]
[TimeControl "180+1"]
[EndTime "14:27:50 PDT"]
[Termination "KamilGrycel won by resignation"]

1. d4 {[%clk 0:02:56]} 1... e5 {[%clk 0:02:57.2]} 2. c3 {[%clk 0:02:54.6]} 2...
exd4 {[%clk 0:02:56.7]} 3. cxd4 {[%clk 0:02:55.5]} 3... d5 {[%clk 0:02:57.4]} 4.
Nc3 {[%clk 0:02:55.5]} 4... c6 {[%clk 0:02:58.3]} 5. Nf3 {[%clk 0:02:55]} 5...
Bd6 {[%clk 0:02:57.9]} 6. Bg5 {[%clk 0:02:54]} 6... Ne7 {[%clk 0:02:57.2]} 7. e3
{[%clk 0:02:52.7]} 7... f6 {[%clk 0:02:57.8]} 8. Bh4 {[%clk 0:02:52.6]} 8... O-O
{[%clk 0:02:58.7]} 9. Bd3 {[%clk 0:02:51.8]} 9... Bf5 {[%clk 0:02:59.4]} 10. Bg3
{[%clk 0:02:48.6]} 10... Bxd3 {[%clk 0:02:59.4]} 11. Qxd3 {[%clk 0:02:48.4]}
11... Na6 {[%clk 0:03:00.1]} 12. a3 {[%clk 0:02:47.5]} 12... Nc7 {[%clk
0:03:00]} 13. O-O {[%clk 0:02:44.9]} 13... Qd7 {[%clk 0:03:00.4]} 14. b4 {[%clk
0:02:42.1]} 14... a5 {[%clk 0:02:45.2]} 15. b5 {[%clk 0:02:40]} 15... Bxg3
{[%clk 0:02:30.9]} 16. hxg3 {[%clk 0:02:39.8]} 16... Nxb5 {[%clk 0:02:24.9]} 17.
Nxb5 {[%clk 0:02:36.4]} 17... cxb5 {[%clk 0:02:24.6]} 18. Rab1 {[%clk
0:02:37.2]} 18... Rfc8 {[%clk 0:02:10.1]} 19. Rxb5 {[%clk 0:02:34]} 19... Rc3
{[%clk 0:01:42.1]} 20. Rxb7 {[%clk 0:02:10.1]} 20... Qxb7 {[%clk 0:01:43]} 21.
Qxc3 {[%clk 0:02:10]} 21... a4 {[%clk 0:01:36.4]} 22. Qc5 {[%clk 0:02:01.6]}
22... Rc8 {[%clk 0:01:33]} 23. Qd6 {[%clk 0:01:58.2]} 23... Rc6 {[%clk
0:01:27.8]} 24. Qb4 {[%clk 0:01:41.5]} 24... Qxb4 {[%clk 0:01:23.7]} 25. axb4
{[%clk 0:01:42.4]} 25... Rb6 {[%clk 0:01:23.2]} 26. Rb1 {[%clk 0:01:41.3]} 26...
Nc6 {[%clk 0:01:18.5]} 27. b5 {[%clk 0:01:40.1]} 27... Na5 {[%clk 0:01:16.7]}
28. Ra1 {[%clk 0:01:36.4]} 28... Rxb5 {[%clk 0:01:13.2]} 29. Rxa4 {[%clk
0:01:36.5]} 29... Kf7 {[%clk 0:01:12.3]} 30. Ra2 {[%clk 0:01:34.1]} 30... g5
{[%clk 0:00:57.3]} 31. g4 {[%clk 0:01:32.1]} 31... Nc4 {[%clk 0:00:40.4]} 32.
Kh2 {[%clk 0:01:27.5]} 32... Kg6 {[%clk 0:00:38.5]} 33. Kg3 {[%clk 0:01:26.7]}
33... Rb2 {[%clk 0:00:34.9]} 34. Rxb2 {[%clk 0:01:25.5]} 34... Nxb2 {[%clk
0:00:34.9]} 35. Nd2 {[%clk 0:01:23.6]} 35... f5 {[%clk 0:00:33.6]} 36. gxf5+
{[%clk 0:01:22.7]} 36... Kxf5 {[%clk 0:00:33.9]} 37. Kf3 {[%clk 0:01:21.3]}
37... h5 {[%clk 0:00:32.5]} 38. Nb3 {[%clk 0:01:16.1]} 38... g4+ {[%clk
0:00:29.8]} 39. Kg3 {[%clk 0:01:11.4]} 39... Nd3 {[%clk 0:00:28.9]} 40. Nc5
{[%clk 0:01:08.1]} 40... h4+ {[%clk 0:00:24.2]} 41. Kxh4 {[%clk 0:01:03.6]}
41... Nxf2 {[%clk 0:00:24.9]} 42. Kg3 {[%clk 0:00:59.6]} 42... Nd1 {[%clk
0:00:25.4]} 43. Nd7 {[%clk 0:00:21.8]} 43... Nxe3 {[%clk 0:00:23.3]} 44. Ne5
{[%clk 0:00:22.4]} 44... Nf1+ {[%clk 0:00:19.6]} 45. Kf2 {[%clk 0:00:22.5]}
45... Nd2 {[%clk 0:00:20.1]} 46. Ke3 {[%clk 0:00:21.2]} 46... Nc4+ {[%clk
0:00:16.7]} 47. Nxc4 {[%clk 0:00:19.5]} 47... dxc4 {[%clk 0:00:17.6]} 48. Kd2
{[%clk 0:00:18.3]} 48... Ke4 {[%clk 0:00:10.9]} 49. Kc3 {[%clk 0:00:18.4]} 49...
g3 {[%clk 0:00:10.4]} 50. Kxc4 {[%clk 0:00:18.3]} 50... Ke3 {[%clk 0:00:11.1]}
51. d5 {[%clk 0:00:18.8]} 51... Kf2 {[%clk 0:00:12]} 52. d6 {[%clk 0:00:19.3]}
52... Kxg2 {[%clk 0:00:12.9]} 53. d7 {[%clk 0:00:19.8]} 53... Kh1 {[%clk
0:00:13.8]} 54. d8=Q {[%clk 0:00:20.2]} 54... g2 {[%clk 0:00:14.7]} 55. Qh4+
{[%clk 0:00:20.5]} 55... Kg1 {[%clk 0:00:14.5]} 56. Kd3 {[%clk 0:00:20.9]} 56...
Kf1 {[%clk 0:00:14.6]} 57. Qf4+ {[%clk 0:00:21.1]} 57... Ke1 {[%clk 0:00:14.4]}
58. Qe3+ {[%clk 0:00:20.8]} 58... Kf1 {[%clk 0:00:15.1]} 59. Qf3+ {[%clk
0:00:21.1]} 59... Kg1 {[%clk 0:00:13.6]} 60. Ke3 {[%clk 0:00:21.4]} 60... Kh1
{[%clk 0:00:14.3]} 61. Qh5+ {[%clk 0:00:21.6]} 61... Kg1 {[%clk 0:00:13.4]} 62.
Qh3 {[%clk 0:00:20.2]} 62... Kf1 {[%clk 0:00:13.3]} 63. Kf3 {[%clk 0:00:20]}
63... Ke1 {[%clk 0:00:10.6]} 64. Qxg2 {[%clk 0:00:20.2]} 1-0

[Event "Late-Titled-Tuesday-Blitz-September-12-2023"]
[Site "Chess.com"]
[Date "2023.09.12"]
[Round "3"]
[White "CarlosjPineror"]
[Black "thedjoker98"]
[Result "0-1"]
[WhiteElo "2435"]
[BlackElo "2615"]
[TimeControl "180+1"]
[EndTime "14:27:52 PDT"]
[Termination "thedjoker98 won by resignation"]

1. d4 {[%clk 0:03:00.9]} 1... d5 {[%clk 0:02:59.6]} 2. c4 {[%clk 0:03:00.8]}
2... c6 {[%clk 0:02:59.5]} 3. cxd5 {[%clk 0:03:00.4]} 3... cxd5 {[%clk
0:02:59.4]} 4. Nc3 {[%clk 0:03:01.3]} 4... e5 {[%clk 0:02:57.3]} 5. e3 {[%clk
0:02:02.6]} 5... exd4 {[%clk 0:02:54.2]} 6. exd4 {[%clk 0:02:02.2]} 6... Nc6
{[%clk 0:02:50.6]} 7. Nf3 {[%clk 0:02:02.4]} 7... Bg4 {[%clk 0:02:49.9]} 8. Be3
{[%clk 0:01:59.8]} 8... Bd6 {[%clk 0:02:48.6]} 9. h3 {[%clk 0:01:59.5]} 9... Bh5
{[%clk 0:02:48.4]} 10. Nxd5 {[%clk 0:01:55.9]} 10... Nge7 {[%clk 0:02:44.9]} 11.
Nxe7 {[%clk 0:01:55.2]} 11... Qxe7 {[%clk 0:02:45.8]} 12. Be2 {[%clk 0:01:54]}
12... Bb4+ {[%clk 0:02:45.5]} 13. Kf1 {[%clk 0:01:49.6]} 13... Rd8 {[%clk
0:02:43.8]} 14. Qb3 {[%clk 0:01:41.8]} 14... O-O {[%clk 0:02:39.2]} 15. Rd1
{[%clk 0:01:36.3]} 15... Bxf3 {[%clk 0:02:23.9]} 16. Bxf3 {[%clk 0:01:34.7]}
16... Nxd4 {[%clk 0:02:23.8]} 17. Bxd4 {[%clk 0:01:26.3]} 17... Rxd4 {[%clk
0:02:23.4]} 18. g3 {[%clk 0:01:11.9]} 18... Rxd1+ {[%clk 0:02:22.8]} 19. Qxd1
{[%clk 0:01:07.5]} 19... Rd8 {[%clk 0:02:22.2]} 20. Qb3 {[%clk 0:01:02.7]} 20...
Rd2 {[%clk 0:02:21]} 21. Kg2 {[%clk 0:01:02.6]} 21... Bc5 {[%clk 0:02:20.4]} 22.
Rf1 {[%clk 0:01:00.8]} 22... Bb6 {[%clk 0:02:11.2]} 23. Qc3 {[%clk 0:00:59.1]}
23... Qd7 {[%clk 0:01:39.7]} 24. Bg4 {[%clk 0:00:45.1]} 24... Qd5+ {[%clk
0:01:35.8]} 25. Bf3 {[%clk 0:00:45.1]} 25... Qd7 {[%clk 0:01:30.4]} 26. a4
{[%clk 0:00:40]} 26... a5 {[%clk 0:01:14]} 27. h4 {[%clk 0:00:38.7]} 27... g6
{[%clk 0:01:07.7]} 28. b4 {[%clk 0:00:31.2]} 28... Rd3 {[%clk 0:00:57.7]} 29.
Qe1 {[%clk 0:00:23.6]} 29... Qxa4 {[%clk 0:00:45.2]} 30. bxa5 {[%clk 0:00:23.3]}
30... Bxa5 {[%clk 0:00:43.2]} 31. Qb1 {[%clk 0:00:23.5]} 31... Rb3 {[%clk
0:00:38.5]} 32. Qc2 {[%clk 0:00:23.7]} 32... Qb4 {[%clk 0:00:36.4]} 33. Bd5
{[%clk 0:00:18.2]} 33... Rb2 {[%clk 0:00:35]} 34. Qc8+ {[%clk 0:00:18.1]} 34...
Kg7 {[%clk 0:00:35.2]} 35. Qd7 {[%clk 0:00:18.7]} 35... Qf8 {[%clk 0:00:32.5]}
36. Rc1 {[%clk 0:00:17]} 36... Bb6 {[%clk 0:00:31.8]} 37. Rc8 {[%clk 0:00:17.2]}
37... Rxf2+ {[%clk 0:00:31.4]} 38. Kh3 {[%clk 0:00:16.6]} 38... Qb4 {[%clk
0:00:27.2]} 39. Qe8 {[%clk 0:00:13.1]} 39... Rf5 {[%clk 0:00:17.3]} 40. Qh8+
{[%clk 0:00:05.8]} 40... Kh6 {[%clk 0:00:17.2]} 41. Bg2 {[%clk 0:00:05.6]} 41...
Bf2 {[%clk 0:00:13.8]} 42. Qc3 {[%clk 0:00:04.7]} 42... Qxc3 {[%clk 0:00:13.5]}
43. Rxc3 {[%clk 0:00:05.6]} 43... b5 {[%clk 0:00:13.3]} 44. Rb3 {[%clk
0:00:05.7]} 44... Be1 {[%clk 0:00:13.1]} 45. Be4 {[%clk 0:00:05.3]} 45... Re5
{[%clk 0:00:12.4]} 46. Bd3 {[%clk 0:00:05.1]} 46... b4 {[%clk 0:00:12.7]} 47.
Bc4 {[%clk 0:00:06]} 47... Bc3 {[%clk 0:00:12.5]} 48. Bxf7 {[%clk 0:00:05.7]}
48... Re3 {[%clk 0:00:12.6]} 49. Kg4 {[%clk 0:00:04.9]} 49... Kg7 {[%clk
0:00:11.7]} 50. Bc4 {[%clk 0:00:04.9]} 50... h5+ {[%clk 0:00:10.1]} 51. Kf4
{[%clk 0:00:05.4]} 51... Re1 {[%clk 0:00:10.2]} 52. Rb1 {[%clk 0:00:05.5]} 52...
Rxb1 {[%clk 0:00:08.6]} 0-1

[Event "Late-Titled-Tuesday-Blitz-September-12-2023"]
[Site "Chess.com"]
[Date "2023.09.12"]
[Round "3"]
[White "DvaHrasta"]
[Black "Skagoogle"]
[Result "0-1"]
[WhiteElo "2480"]
[BlackElo "2782"]
[TimeControl "180+1"]
[EndTime "14:27:53 PDT"]
[Termination "Skagoogle won on time"]

1. c4 {[%clk 0:03:00.9]} 1... e5 {[%clk 0:02:53.6]} 2. g3 {[%clk 0:03:00.9]}
2... g6 {[%clk 0:02:53.9]} 3. d4 {[%clk 0:02:59.3]} 3... d6 {[%clk 0:02:53.5]}
4. Nc3 {[%clk 0:02:52.4]} 4... Bg7 {[%clk 0:02:51.2]} 5. Nf3 {[%clk 0:02:49]}
5... Nd7 {[%clk 0:02:47]} 6. Bg2 {[%clk 0:02:46.9]} 6... Ne7 {[%clk 0:02:47]} 7.
O-O {[%clk 0:02:43.8]} 7... O-O {[%clk 0:02:47.2]} 8. e4 {[%clk 0:02:43.2]} 8...
c6 {[%clk 0:02:37]} 9. Bg5 {[%clk 0:02:33.5]} 9... h6 {[%clk 0:02:35.6]} 10.
Bxe7 {[%clk 0:02:32]} 10... Qxe7 {[%clk 0:02:36.5]} 11. d5 {[%clk 0:02:31.4]}
11... a5 {[%clk 0:02:32.2]} 12. Na4 {[%clk 0:02:22.8]} 12... f5 {[%clk
0:02:20.8]} 13. Nh4 {[%clk 0:02:15.7]} 13... Kh7 {[%clk 0:02:18.1]} 14. Bh3
{[%clk 0:02:10.3]} 14... fxe4 {[%clk 0:02:07.4]} 15. Qg4 {[%clk 0:01:56.1]}
15... Qf6 {[%clk 0:00:51.9]} 16. Qxe4 {[%clk 0:01:48.2]} 16... cxd5 {[%clk
0:00:52.2]} 17. cxd5 {[%clk 0:01:42.6]} 17... b5 {[%clk 0:00:52]} 18. Nc3 {[%clk
0:01:35.8]} 18... Nc5 {[%clk 0:00:51.6]} 19. Qg2 {[%clk 0:01:35.2]} 19... Bxh3
{[%clk 0:00:49.4]} 20. Qxh3 {[%clk 0:01:34.1]} 20... b4 {[%clk 0:00:49.7]} 21.
Ne2 {[%clk 0:01:26.5]} 21... g5 {[%clk 0:00:36.6]} 22. Ng2 {[%clk 0:01:25.9]}
22... e4 {[%clk 0:00:37.1]} 23. Rab1 {[%clk 0:01:16.5]} 23... Rae8 {[%clk
0:00:36.9]} 24. Ne3 {[%clk 0:01:14.7]} 24... Nd3 {[%clk 0:00:36.1]} 25. Ng4
{[%clk 0:01:06.7]} 25... Qf3 {[%clk 0:00:30.3]} 26. Nc1 {[%clk 0:00:57.3]} 26...
Nxb2 {[%clk 0:00:19.1]} 27. Rxb2 {[%clk 0:00:51.5]} 27... e3 {[%clk 0:00:19.4]}
28. Re2 {[%clk 0:00:45.4]} 28... exf2+ {[%clk 0:00:18.7]} 29. Rexf2 {[%clk
0:00:45.6]} 29... Qxd5 {[%clk 0:00:13.8]} 30. Rxf8 {[%clk 0:00:34.3]} 30... Rxf8
{[%clk 0:00:14.2]} 31. Rxf8 {[%clk 0:00:32.8]} 31... Qc5+ {[%clk 0:00:14.8]} 32.
Kg2 {[%clk 0:00:31.3]} 32... Bxf8 {[%clk 0:00:14.3]} 33. Ne2 {[%clk 0:00:30.2]}
33... Qd5+ {[%clk 0:00:13.5]} 34. Kf1 {[%clk 0:00:28.3]} 34... Bg7 {[%clk
0:00:14.1]} 35. Ne3 {[%clk 0:00:26.6]} 35... Qxa2 {[%clk 0:00:08.9]} 36. Qf5+
{[%clk 0:00:25.9]} 36... Kh8 {[%clk 0:00:09.7]} 37. Qc8+ {[%clk 0:00:25.3]}
37... Qg8 {[%clk 0:00:10.1]} 38. Qa6 {[%clk 0:00:23.5]} 38... Qf7+ {[%clk
0:00:10.3]} 39. Kg2 {[%clk 0:00:23.2]} 39... b3 {[%clk 0:00:10.7]} 40. Qxa5
{[%clk 0:00:21.9]} 40... b2 {[%clk 0:00:11.2]} 41. Qa8+ {[%clk 0:00:21.1]} 41...
Kh7 {[%clk 0:00:11.4]} 42. Qe4+ {[%clk 0:00:20.8]} 42... Qg6 {[%clk 0:00:12.1]}
43. Qb4 {[%clk 0:00:17.8]} 43... b1=Q {[%clk 0:00:11.9]} 44. Qxb1 {[%clk
0:00:18]} 44... Qxb1 {[%clk 0:00:11.9]} 45. Kf3 {[%clk 0:00:18]} 45... Qg6
{[%clk 0:00:12]} 46. g4 {[%clk 0:00:18]} 46... d5 {[%clk 0:00:11]} 47. Nf5
{[%clk 0:00:17.6]} 47... Bf8 {[%clk 0:00:10.7]} 48. h4 {[%clk 0:00:16.8]} 48...
gxh4 {[%clk 0:00:10.9]} 49. Nxh4 {[%clk 0:00:15.8]} 49... Qf6+ {[%clk
0:00:10.5]} 50. Nf5 {[%clk 0:00:15.4]} 50... h5 {[%clk 0:00:10.8]} 51. Nf4
{[%clk 0:00:15.2]} 51... hxg4+ {[%clk 0:00:10.8]} 52. Kxg4 {[%clk 0:00:15.4]}
52... Be7 {[%clk 0:00:08.9]} 53. Nh3 {[%clk 0:00:13.3]} 53... d4 {[%clk
0:00:08]} 54. Ng3 {[%clk 0:00:11.4]} 54... d3 {[%clk 0:00:07.4]} 55. Nf4 {[%clk
0:00:09.9]} 55... d2 {[%clk 0:00:07]} 0-1